bitfinex/quotes_ETHUSD_20250908
["timestamp","ask_amount","ask_price","bid_price","bid_amount"]
[1757314682521,14.40024534,4297.0,4296.9,0.002]
[1757314682946,16.72745036,4297.0,4296.9,0.002]
[1757314685028,14.40024534,4297.0,4296.9,0.002]
[1757314686242,13.96374534,4297.0,4296.9,0.002]
[1757314686558,13.67584534,4297.0,4296.9,0.002]
[1757314686756,14.11234534,4297.0,4296.9,0.002]
[1757314688326,11.84443737,4297.0,4296.9,0.002]
[1757314690831,12.13233737,4297.0,4296.9,0.002]
[1757314691454,14.45954239,4297.0,4296.9,0.002]
[1757314692278,14.96270127,4297.0,4296.9,0.002]
[1757314694781,14.52620127,4297.0,4296.9,0.002]
[1757314695174,14.96270127,4297.0,4296.9,0.002]
[1757314695382,17.23060924,4297.0,4296.9,0.002]
[1757314695885,16.72745036,4297.0,4296.9,0.002]
[1757314696085,17.23061325,4297.0,4296.9,0.002]
[1757314699491,14.90340823,4297.0,4296.9,0.002]
[1757314700090,19.57231861,4297.0,4296.9,0.002]
[1757314700560,20.00881861,4297.0,4296.9,0.002]
[1757314701097,20.75941861,4297.0,4296.9,0.002]
[1757314701998,13.71630823,4297.0,4296.9,0.002]
[1757314702302,11.44840026,4297.0,4296.9,0.002]
[1757314702871,13.927,4297.0,4296.9,0.002]
[1757314703179,14.719,4297.0,4296.9,0.002]
[1757314706068,3.0,4297.0,4296.9,0.002]
[1757314706366,6.867,4297.0,4296.9,0.002]
[1757314706569,6.867,4297.0,4296.9,0.09523021]
[1757314706780,7.659,4297.0,4296.9,0.09523021]
[1757314710488,7.659,4297.0,4296.9,0.002]
[1757314713377,4.659,4297.0,4296.9,2.32925918]
[1757314713696,4.659,4297.0,4296.9,0.002]
[1757314716310,5.0916,4297.0,4296.9,0.002]
[1757314716512,1.2246,4297.0,4296.9,0.002]
[1757314716679,5.0906,4297.0,4296.9,0.002]
[1757314717181,4.658,4297.0,4296.9,0.002]
[1757314717912,5.0906,4297.0,4296.9,0.002]
[1757314718109,4.658,4297.0,4296.9,0.002]
[1757314718309,4.658,4297.0,4296.9,2.32925918]
[1757314719418,4.658,4297.0,4296.9,0.002]
[1757314721187,5.8437,4297.0,4296.9,0.002]
[1757314735931,5.5415,4297.0,4296.9,0.002]
[1757314736836,5.0906,4297.0,4296.9,0.002]
[1757314737401,5.5503,4297.0,4296.9,0.002]
[1757314737698,5.8612,4297.0,4296.9,0.002]
[1757314747510,4.658,4297.0,4296.9,2.32925918]
[1757314747735,4.658,4297.0,4296.9,0.002]
[1757314748861,5.1236,4297.0,4296.9,0.002]
[1757314750830,5.1236,4297.0,4296.9,2.32925918]
[1757314751562,5.1236,4297.0,4296.9,0.002]
[1757314752926,5.5833,4297.0,4296.9,0.002]
[1757314753952,5.8942,4297.0,4296.9,0.002]
[1757314756598,6.35130308,4297.0,4296.9,0.002]
[1757314757934,6.34930308,4297.0,4296.9,0.002]
[1757314758136,5.8922,4297.0,4296.9,0.002]
[1757314762377,8.8922,4297.0,4296.9,0.002]
[1757314762746,8.98543781,4297.0,4296.9,0.002]
[1757314763458,8.8922,4297.0,4296.9,0.002]
[1757314763879,11.21940502,4297.0,4296.9,0.002]
[1757314764681,11.14107043,4297.0,4296.9,0.002]
[1757314765683,13.46827545,4297.0,4296.9,0.002]
[1757314766251,13.39943229,4297.0,4296.9,0.002]
[1757314766983,11.07222727,4297.0,4296.9,0.002]
[1757314770959,13.39943229,4297.0,4296.9,0.002]
[1757314771360,13.49267011,4297.0,4296.9,0.002]
[1757314771756,13.39943229,4297.0,4296.9,0.002]
[1757314776290,11.07222727,4297.0,4296.9,0.002]
[1757314776593,13.39943229,4297.0,4296.9,0.002]
[1757314776793,18.45010876,4297.0,4296.9,0.002]
[1757314777096,11.16746508,4297.0,4296.9,0.002]
[1757314777296,13.4946701,4297.0,4296.9,0.002]
[1757314777792,11.16746508,4297.0,4296.9,0.002]
[1757314779800,11.16846508,4297.0,4296.9,0.002]
[1757314781195,13.4956701,4297.0,4296.9,0.002]
[1757314781603,11.16846508,4297.0,4296.9,0.002]
[1757314782264,13.4956701,4297.0,4296.9,0.002]
[1757314784501,19.35263534,4297.0,4296.9,0.002]
[1757314786318,17.52803552,4297.0,4296.9,0.002]
[1757314787189,19.85524054,4297.0,4296.9,0.002]
[1757314787630,26.91524054,4297.0,4296.9,0.002]
[1757314793331,24.66637011,4297.0,4296.9,0.002]
[1757314795203,22.33916509,4297.0,4296.9,0.002]
[1757314795618,24.66637011,4297.0,4296.9,0.002]
[1757314800038,24.66637011,4297.0,4296.9,0.002]
[1757314800707,24.20077011,4297.0,4296.9,0.002]
[1757314801037,24.67137011,4297.0,4296.9,0.002]
[1757314803036,26.93927808,4297.0,4296.9,0.002]
[1757314803338,0.792,4296.7,4296.5,0.002]
[1757314803538,4.655,4296.6,4296.5,0.002]
[1757314803739,5.1256,4296.6,4296.5,0.002]
[1757314803936,5.41302395,4296.6,4296.5,0.002]
[1757314804137,6.49632395,4296.6,4296.5,0.002]
[1757314804646,12.54421356,4296.6,4296.5,0.002]
[1757314804845,9.64896524,4296.3,4296.2,0.325]
[1757314805013,15.8033741,4296.3,4296.2,0.325]
[1757314805344,18.31214836,4296.3,4296.2,0.16471343]
[1757314805542,8.14488312,4296.3,4296.2,0.16471343]
[1757314805745,10.6962,4296.3,4296.2,0.16471343]
[1757314806111,10.9979,4296.3,4296.2,0.16471343]
[1757314807753,10.9979,4296.3,4296.2,0.08918033]
[1757314809280,9.769,4296.3,4296.2,0.08918033]
[1757314811545,10.2396,4296.3,4296.2,0.08918033]
[1757314811865,5.652,4296.3,4296.2,0.08918033]
[1757314812170,5.652,4296.3,4296.2,2.4168187]
[1757314812564,5.652,4296.3,4296.2,3.11613815]
[1757314812770,6.444,4296.3,4296.2,3.11613815]
[1757314814571,6.444,4296.3,4296.2,0.78849978]
[1757314816376,6.444,4296.3,4296.2,0.08918033]
[1757314816675,6.444,4296.3,4296.2,2.4168187]
[1757314816875,6.444,4296.3,4296.2,0.08918033]
[1757314817459,6.444,4296.3,4296.2,2.4168187]
[1757314818175,6.444,4296.3,4296.2,0.08918033]
[1757314818875,6.444,4296.3,4296.2,2.4168187]
[1757314821139,6.444,4296.3,4296.2,0.08918033]
[1757314821461,6.9146,4296.3,4296.2,0.08918033]
[1757314822163,8.02616675,4296.3,4296.2,0.08918033]
[1757314824582,8.02616675,4296.3,4296.2,2.4168187]
[1757314825346,6.79726675,4296.3,4296.2,2.4168187]
[1757314825586,6.79726675,4296.3,4296.2,0.08918033]
[1757314825767,7.24206675,4296.3,4296.2,0.08918033]
[1757314826077,7.99566675,4296.3,4296.2,0.08918033]
[1757314827395,7.99566675,4296.3,4296.2,2.4168187]
[1757314828298,7.99566675,4296.3,4296.2,0.08918033]
[1757314828675,7.70756675,4296.3,4296.2,0.08918033]
[1757314828997,7.99566675,4296.3,4296.2,0.08918033]
[1757314829197,7.99566675,4296.3,4296.2,2.4168187]
[1757314829611,7.99566675,4296.3,4296.2,0.08918033]
[1757314832115,7.99566675,4296.3,4296.2,2.4168187]
[1757314833024,7.99666675,4296.3,4296.2,2.4168187]
[1757314834416,7.99666675,4296.3,4296.2,0.08918033]
[1757314834629,7.99666675,4296.3,4296.2,2.4168187]
[1757314835333,7.99666675,4296.3,4296.2,0.08918033]
[1757314836323,11.79633343,4296.3,4296.2,0.08918033]
[1757314836634,12.49574907,4296.3,4296.2,0.08918033]
[1757314837694,12.20764907,4296.3,4296.2,0.08918033]
[1757314838016,11.79633343,4296.3,4296.2,0.08918033]
[1757314838901,17.65329867,4296.3,4296.2,0.08918033]
[1757314839504,11.88958537,4296.3,4296.2,0.08918033]
[1757314841344,11.79633343,4296.3,4296.2,0.08918033]
[1757314843435,10.55186675,4296.3,4296.2,0.08918033]
[1757314843636,10.24306675,4296.3,4296.2,0.08918033]
[1757314843842,10.53116675,4296.3,4296.2,0.08918033]
[1757314844044,10.99666675,4296.3,4296.2,0.08918033]
[1757314852553,10.24306675,4296.3,4296.2,0.08918033]
[1757314853535,10.70236675,4296.3,4296.2,0.08918033]
[1757314856065,12.77442862,4296.3,4296.2,0.08918033]
[1757314862888,0.35426675,4296.3,4296.2,2.4168187]
[1757314863656,0.35426675,4296.3,4296.2,3.13931673]
[1757314863865,1e-08,4296.3,4296.2,3.11604035]
[1757314864500,1e-08,4296.3,4296.2,10.52072113]
[1757314864700,1e-08,4296.3,4296.2,15.28644475]
[1757314864904,1e-08,4296.3,4296.2,15.40244475]
[1757314865071,1e-08,4297.1,4297.0,2.32720502]
[1757314865271,1e-08,4297.1,4297.0,2.44320502]
[1757314865672,1e-08,4297.1,4297.0,2.53640872]
[1757314867708,1e-08,4297.1,4297.0,5.42040872]
[1757314869626,1e-08,4297.1,4297.0,9.28140872]
[1757314871824,1e-08,4297.1,4297.0,6.39740872]
[1757314872127,1e-08,4297.1,4297.0,13.09740872]
[1757314872932,1e-08,4297.1,4297.0,6.39740872]
[1757314873642,0.79200001,4297.1,4297.0,6.39640872]
[1757314874280,0.79200001,4297.1,4297.0,2.53640872]
[1757314875784,0.79200001,4297.1,4297.0,6.39640872]
[1757314877291,1.24010001,4297.1,4297.0,6.39640872]
[1757314880611,1.98590001,4297.1,4297.0,6.39640872]
[1757314880856,1.98590001,4297.1,4297.0,2.53640872]
[1757314881061,1.98590001,4297.1,4297.0,6.39640872]
[1757314885126,1.98590001,4297.1,4297.0,2.53640872]
[1757314885548,1.98590001,4297.1,4297.0,2.53840872]
[1757314885871,0.792,4297.0,4296.2,0.08918033]
[1757314886028,0.792,4297.0,4296.5,2.32742789]
[1757314886233,0.2929,4296.6,4296.5,0.002]
[1757314886651,2.0429,4296.6,4296.5,2.32947585]
[1757314887751,0.792,4296.6,4296.5,2.32947585]
[1757314888374,0.792,4296.6,4296.5,6.19047585]
[1757314890446,0.79106913,4296.6,4296.5,2.32947585]
[1757314890672,1.57766913,4296.6,4296.5,2.32947585]
[1757314890857,2.04196913,4296.6,4296.5,2.32947585]
[1757314893478,0.79106913,4296.6,4296.5,2.32947585]
[1757314893850,1.25536913,4296.6,4296.5,2.32947585]
[1757314894579,0.79106913,4296.6,4296.5,2.32947585]
[1757314896752,0.79106913,4296.6,4296.5,6.18947585]
[1757314896946,0.79106913,4296.6,4296.5,6.88860788]
[1757314898492,1.57766913,4296.6,4296.5,3.02860788]
[1757314898661,2.04196913,4296.6,4296.5,3.02860788]
[1757314899447,1.25536913,4296.6,4296.5,3.02860788]
[1757314899668,0.79106913,4296.6,4296.5,3.02860788]
[1757314903465,1.17420105,4296.9,4296.8,2.32731334]
[1757314903683,1e-08,4297.1,4297.0,2.32720502]
[1757314903853,1e-08,4297.1,4297.0,6.18720502]
[1757314904057,1e-08,4297.1,4297.0,6.28040655]
[1757314904898,1.25630001,4297.1,4297.0,2.42040655]
[1757314905197,2.04290001,4297.1,4297.0,6.28140655]
[1757314906019,2.04290001,4297.1,4297.0,2.42040655]
[1757314907698,2.04290001,4297.1,4296.8,2.44331334]
[1757314907699,0.792,4297.0,4296.9,2.32725448]
[1757314908200,2.0429,4297.0,4296.9,2.32725448]
[1757314912112,1e-08,4297.1,4297.0,2.32720502]
[1757314912410,0.46430001,4297.1,4297.0,2.32720502]
[1757314912710,1.75000001,4297.1,4297.0,2.32720502]
[1757314912874,2.04290001,4297.1,4297.0,2.32720502]
[1757314921185,1.28570001,4297.1,4297.0,2.32720502]
[1757314921514,2.03310001,4297.1,4297.0,2.32720502]
[1757314922190,0.79200001,4297.1,4297.0,2.32720502]
[1757314922614,0.79200001,4297.1,4297.0,2.35047707]
[1757314923119,2.03220001,4297.1,4297.0,2.32720502]
[1757314946241,1.24020001,4297.1,4297.0,2.32720502]
[1757314950467,2.03220001,4297.1,4297.0,2.32720502]
[1757314951458,2.03220001,4297.1,4297.0,3.0263566]
[1757314952367,1.73080001,4297.1,4297.0,3.0263566]
[1757314952671,1.23800001,4297.1,4297.0,3.0263566]
[1757314954773,0.79200001,4297.1,4297.0,3.0263566]
[1757314954973,1.25930001,4297.1,4297.0,3.0263566]
[1757314956766,2.04460001,4297.1,4297.0,3.0263566]
[1757314961576,1.25930001,4297.1,4297.0,3.0263566]
[1757314962189,2.04460001,4297.1,4297.0,3.0263566]
[1757314967364,2.04460001,4297.1,4297.0,2.32720502]
[1757314973765,1.25930001,4297.1,4297.0,2.32720502]
[1757314974291,2.01180001,4297.1,4297.0,2.32720502]
[1757314976510,0.792,4297.0,4296.8,0.69915158]
[1757314976708,1.07248,4296.9,4296.8,0.69915158]
[1757314977009,0.792,4296.8,4296.6,0.002]
[1757314977401,1.9977,4296.7,4296.6,0.002]
[1757314980407,5.8577,4296.7,4296.6,0.002]
[1757314980990,5.8577,4296.7,4295.9,2.32775088]
[1757314980991,0.792,4296.2,4295.8,0.025]
[1757314981215,0.792,4295.8,4295.6,0.002]
[1757314981512,3.792,4295.7,4295.6,0.002]
[1757314981711,0.792,4295.6,4295.1,0.02]
[1757314981913,0.792,4295.4,4295.1,0.02]
[1757314982079,0.792,4295.4,4295.1,2.34821283]
[1757314982279,0.4532,4295.3,4295.2,2.32818029]
[1757314982533,0.792,4295.6,4295.5,2.32801769]
[1757314982694,0.792,4295.6,4295.5,2.36711769]
[1757314983596,0.792,4295.9,4295.6,2.32796349]
[1757314983924,1.2452,4295.9,4295.6,2.32796349]
[1757314984615,0.792,4296.0,4295.9,2.32780092]
[1757314984829,4.7966,4296.4,4296.3,2.3275842]
[1757314985002,4.668,4296.4,4296.3,2.3666842]
[1757314985716,3.928,4296.8,4296.7,2.32736751]
[1757314986114,3.928,4296.8,4296.7,2.36646751]
[1757314986814,4.72,4296.8,4296.7,2.36646751]
[1757314987224,4.72,4296.8,4296.7,3.06564516]
[1757314988628,0.05,4296.8,4296.7,3.06564516]
[1757314991402,0.05,4296.8,4296.7,3.02654516]
[1757314991715,0.051,4296.8,4296.7,3.06564516]
[1757314991916,2.0487,4296.8,4296.7,3.02654516]
[1757314992523,2.0487,4296.8,4295.8,0.0245]
[1757314992524,0.792,4296.7,4295.6,0.002]
[1757314992722,0.792,4295.9,4294.7,0.4804]
[1757314992907,0.792,4295.7,4294.8,0.4361]
[1757314993110,0.792,4295.7,4294.8,2.7644525]
[1757314993308,0.792,4295.7,4294.7,0.24676957]
[1757314993523,0.792,4295.7,4295.0,2.32827996]
[1757314993705,0.792,4295.5,4294.7,0.24676957]
[1757314993907,3.912,4295.4,4294.7,0.24676957]
[1757314994107,3.912,4295.4,4295.0,2.32827436]
[1757314994427,0.792,4295.2,4295.0,2.32827436]
[1757314994736,0.792,4295.0,4294.7,0.002]
[1757314995042,4.704,4294.9,4294.8,2.32839547]
[1757314998950,4.704,4294.9,4294.8,2.63279547]
[1757314999308,3.91,4294.9,4294.8,3.11319713]
[1757314999503,3.91,4294.9,4294.8,2.63279713]
[1757314999715,4.702,4294.9,4294.8,2.63279713]
[1757314999914,4.702,4294.9,4294.8,3.11319713]
[1757315002153,1.788,4295.8,4294.8,0.7848]
[1757315002460,0.792,4295.6,4295.5,2.32801769]
[1757315003032,1.5303,4295.6,4295.5,2.32801769]
[1757315004162,0.792,4295.7,4295.6,2.32796349]
[1757315004452,4.703,4295.7,4295.6,2.32796349]
[1757315006945,0.792,4295.7,4295.6,2.32796349]
[1757315007142,4.701,4295.7,4295.6,2.32796349]
[1757315007674,0.792,4295.7,4295.6,2.32796349]
[1757315007881,0.792,4296.3,4295.9,2.32775455]
[1757315008052,2.34725935,4296.9,4296.7,2.32736751]
[1757315008053,0.051,4296.8,4296.7,2.32736751]
[1757315008250,0.8065,4296.8,4296.4,2.32750155]
[1757315008440,0.57267,4296.7,4296.4,2.32750155]
[1757315008640,0.4418,4296.7,4296.4,2.32750155]
[1757315009039,0.4418,4296.7,4296.6,2.32742168]
[1757315009280,3.961,4296.8,4296.7,2.32736751]
[1757315009764,4.753,4296.8,4296.7,2.32736751]
[1757315010380,5.0667,4296.8,4296.7,2.32736751]
[1757315012077,4.753,4296.8,4296.7,2.61576751]
[1757315013481,4.753,4296.8,4296.7,2.32736751]
[1757315015889,4.753,4296.8,4296.7,2.61576751]
[1757315016597,0.051,4296.8,4296.7,3.08146751]
[1757315016796,0.051,4296.8,4296.7,3.53486751]
[1757315016956,0.051,4296.8,4296.7,3.08146751]
[1757315018379,0.051,4296.8,4296.7,2.61576751]
[1757315018779,0.8065,4296.8,4296.7,2.32736751]
[1757315018986,1.5985,4296.8,4296.7,2.32736751]
[1757315019294,1.1567,4296.8,4296.7,2.32736751]
[1757315019501,1.5985,4296.8,4296.7,2.32736751]
[1757315020568,1.1567,4296.8,4296.7,2.32736751]
[1757315021173,0.843,4296.8,4296.7,2.32736751]
[1757315022814,0.843,4296.8,4296.7,2.61576751]
[1757315023121,0.843,4296.8,4296.7,2.32736751]
[1757315027710,1.1567,4296.8,4296.7,2.32736751]
[1757315028332,0.843,4296.8,4296.7,2.32736751]
[1757315033471,1.6087,4296.8,4296.7,2.32736751]
[1757315038034,0.843,4296.8,4296.7,2.32736751]
[1757315040867,1.6044,4296.8,4296.7,2.32736751]
[1757315041752,1.1524,4296.8,4296.7,2.32736751]
[1757315041981,2.0716,4296.8,4296.7,2.32736751]
[1757315042508,1.6044,4296.8,4296.7,2.32736751]
[1757315042661,1.1524,4296.8,4296.7,2.32736751]
[1757315045413,2.0716,4296.8,4296.7,2.32736751]
[1757315046211,0.792,4296.7,4295.8,0.69915321]
[1757315046509,0.9192,4296.6,4296.4,2.32749895]
[1757315046696,1.2286,4296.5,4296.4,2.32749895]
[1757315048815,0.7614,4296.5,4296.4,2.32749895]
[1757315051787,4.686,4296.7,4296.6,2.32742168]
[1757315051987,5.227816,4296.7,4296.6,2.32742168]
[1757315052199,5.537216,4296.7,4296.6,2.32742168]
[1757315052504,5.989216,4296.7,4296.6,2.32742168]
[1757315054317,0.843,4296.8,4296.7,3.09056751]
[1757315058122,0.051,4296.8,4296.7,3.09056751]
[1757315058324,0.8124,4296.8,4296.7,2.32736751]
[1757315058522,1.6044,4296.8,4296.7,2.32736751]
[1757315058931,2.0716,4296.8,4296.7,2.32736751]
[1757315059430,1.1524,4296.8,4296.7,2.32736751]
[1757315059608,0.843,4296.8,4296.7,2.32736751]
[1757315060104,0.843,4296.8,4296.7,2.62816751]
[1757315060501,1.6044,4296.8,4296.7,2.32736751]
[1757315065246,0.843,4296.8,4296.7,2.32736751]
[1757315067917,0.843,4296.8,4296.7,2.63316751]
[1757315069156,0.843,4296.8,4296.7,3.08736751]
[1757315070348,0.843,4296.8,4296.7,2.63316751]
[1757315071754,0.843,4296.8,4296.7,3.33230606]
[1757315074857,1.6402,4296.8,4296.7,3.02650606]
[1757315075032,2.0917,4296.8,4296.7,2.32736751]
[1757315078743,0.792,4296.7,4296.5,0.69918417]
[1757315078945,1.7304,4296.7,4296.5,0.69918417]
[1757315079165,2.0407,4296.6,4296.5,3.02666002]
[1757315079658,2.0407,4296.6,4296.5,2.32747585]
[1757315080878,1.1023,4296.6,4296.5,2.32747585]
[1757315081083,0.792,4296.6,4296.5,2.32747585]
[1757315081546,0.792,4296.6,4296.5,3.02665513]
[1757315082986,0.792,4296.6,4296.5,3.33245513]
[1757315084072,0.051,4296.8,4296.7,2.32736751]
[1757315084466,0.051,4296.8,4296.7,3.08736751]
[1757315084789,0.051,4296.8,4296.7,3.78649628]
[1757315087884,0.051,4296.8,4296.7,4.25299628]
[1757315089254,0.051,4296.8,4296.7,3.78649628]
[1757315089655,0.051,4296.8,4296.7,4.25299628]
[1757315090588,0.051,4296.8,4296.7,8.25499628]
[1757315091495,0.051,4296.8,4296.7,14.95499628]
[1757315093392,0.02,4296.9,4296.7,14.95499628]
[1757315093393,0.02,4296.9,4296.8,2.32731334]
[1757315093574,0.02,4296.9,4296.8,3.26191334]
[1757315093772,0.02,4296.9,4296.8,3.56511334]
[1757315095119,0.02,4296.9,4296.8,10.26511334]
[1757315095279,1e-08,4296.9,4296.8,10.26511334]
[1757315100890,0.00100001,4296.9,4296.8,10.26511334]
[1757315104723,0.00100001,4296.9,4296.8,9.79591334]
[1757315105047,0.00100001,4296.9,4296.8,9.33051334]
[1757315105263,0.00100001,4296.9,4296.8,13.21151334]
[1757315106961,0.30790001,4296.9,4296.8,12.90831334]
[1757315107256,0.00100001,4296.9,4296.8,12.90831334]
[1757315110957,0.00100001,4296.9,4296.8,9.02731334]
[1757315111160,0.00100001,4296.9,4296.8,12.90731334]
[1757315112367,0.00100001,4296.9,4296.8,13.21051334]
[1757315112763,0.00100001,4296.9,4296.8,13.67591334]
[1757315113646,0.00100001,4296.9,4296.8,13.21051334]
[1757315120279,0.00100001,4296.9,4296.8,13.21251334]
[1757315122250,0.00100001,4296.9,4296.8,13.67791334]
[1757315122653,0.00100001,4296.9,4296.8,14.14711334]
[1757315123001,1e-08,4297.9,4297.6,2.32685367]
[1757315123290,1e-08,4297.9,4296.9,5.32725918]
[1757315123291,0.4606,4299.4,4298.4,5.32644705]
[1757315123447,0.4606,4299.4,4298.4,18.65848189]
[1757315123792,1e-08,4298.8,4298.7,2.32628469]
[1757315124004,1e-08,4298.8,4298.7,9.21228469]
[1757315124160,1e-08,4298.8,4298.7,9.49838469]
[1757315124496,1e-08,4298.8,4298.7,9.96848469]
[1757315124787,1e-08,4298.8,4298.7,17.12908469]
[1757315125161,1e-08,4298.8,4298.7,16.65898469]
[1757315127264,0.74690001,4298.8,4298.7,12.48688469]
[1757315127483,0.74690001,4298.8,4298.7,16.37088469]
[1757315128191,0.28630001,4298.8,4298.7,16.37088469]
[1757315128590,0.28630001,4298.8,4298.7,12.48688469]
[1757315128890,0.28630001,4298.8,4298.7,16.37088469]
[1757315129196,0.74690001,4298.8,4298.7,16.37088469]
[1757315131091,0.74690001,4298.8,4298.7,16.36988469]
[1757315131668,0.4653,4299.1,4298.7,16.36988469]
[1757315131669,0.4853,4299.9,4299.7,2.32574365]
[1757315132013,0.4853,4299.9,4299.7,6.20774365]
[1757315132303,0.7766,4299.8,4299.7,6.20774365]
[1757315134093,1.2008,4299.8,4299.7,6.20774365]
[1757315134376,0.7766,4299.8,4299.7,6.20774365]
[1757315135801,0.025,4299.8,4299.7,6.20774365]
[1757315135972,0.3113,4299.8,4299.7,6.20774365]
[1757315136171,1.2008,4299.8,4299.7,2.32574365]
[1757315136391,1.2008,4299.8,4299.7,6.20974365]
[1757315137197,0.7766,4299.8,4299.7,6.20974365]
[1757315139508,0.7776,4299.8,4299.7,6.20974365]
[1757315140811,0.7776,4299.8,4299.7,2.32574365]
[1757315141118,1.2018,4299.8,4299.7,6.20874365]
[1757315141993,0.7776,4299.8,4299.7,6.20874365]
[1757315146015,0.7776,4299.8,4299.7,6.20674365]
[1757315148482,0.7776,4299.8,4299.7,6.20574365]
[1757315149743,0.3123,4299.8,4299.7,6.20574365]
[1757315150419,0.3123,4299.8,4299.7,2.32574365]
[1757315150587,0.3123,4299.8,4299.7,6.20574365]
[1757315151201,0.3123,4299.8,4299.7,2.32574365]
[1757315151517,0.3123,4299.8,4299.7,6.20474365]
[1757315152617,0.3123,4299.8,4299.7,10.42494365]
[1757315152618,0.026,4299.8,4299.7,10.42494365]
[1757315153025,0.026,4299.8,4299.7,10.51807595]
[1757315153523,0.026,4299.8,4299.7,17.21807595]
[1757315156791,0.026,4299.8,4299.7,13.33907595]
[1757315156998,0.026,4299.8,4299.7,17.22207595]
[1757315157796,0.026,4299.8,4299.7,16.75197595]
[1757315158297,0.3177,4299.8,4299.7,16.00187595]
[1757315158494,0.8149,4299.8,4299.7,15.90874365]
[1757315159516,0.3177,4299.8,4299.7,15.90874365]
[1757315159931,0.026,4299.8,4299.7,15.90874365]
[1757315160133,0.026,4299.8,4299.7,12.02574365]
[1757315160316,0.026,4299.8,4299.7,15.90774365]
[1757315160724,0.026,4299.8,4299.7,16.21254365]
[1757315160899,0.026,4299.8,4299.7,2.32574365]
[1757315160900,0.2939,4299.8,4299.7,2.32574365]
[1757315161099,0.7911,4299.8,4299.7,6.20774365]
[1757315161507,0.7911,4299.8,4299.7,2.32574365]
[1757315161708,0.7911,4299.8,4299.7,6.20774365]
[1757315164650,0.7911,4299.8,4299.7,6.20674365]
[1757315164851,0.7911,4299.8,4299.7,2.32574365]
[1757315165073,0.7911,4299.8,4299.7,6.20674365]
[1757315170663,1.5831,4299.8,4299.4,6.7]
[1757315170853,0.9396,4299.7,4299.6,2.32579774]
[1757315171052,1.2092,4299.7,4299.6,6.20579774]
[1757315171223,0.7668,4299.7,4299.6,6.20579774]
[1757315171628,0.818,4299.8,4299.7,2.32574365]
[1757315172376,0.818,4299.8,4299.7,2.63054365]
[1757315175872,0.818,4299.8,4299.7,3.58874365]
[1757315175873,0.026,4299.8,4299.7,3.58874365]
[1757315179672,0.026,4299.8,4299.7,3.10374365]
[1757315180340,0.026,4299.8,4299.7,2.63054365]
[1757315180536,0.026,4299.8,4299.7,2.32574365]
[1757315180537,0.2939,4299.8,4299.7,2.32574365]
[1757315185161,0.026,4299.8,4299.7,2.32574365]
[1757315186391,0.026,4299.8,4299.7,3.07134365]
[1757315187359,0.026,4299.8,4299.7,2.61514365]
[1757315188296,0.026,4299.8,4299.7,3.07134365]
[1757315188457,0.026,4299.8,4299.7,3.53664365]
[1757315191366,0.026,4299.8,4299.7,3.07134365]
[1757315192171,0.026,4299.8,4299.7,2.61514365]
[1757315192371,0.026,4299.8,4299.7,2.4188907]
[1757315192967,0.2776,4299.8,4299.7,2.4188907]
[1757315193470,0.759,4299.8,4299.7,2.4188907]
[1757315193703,0.759,4299.8,4299.7,6.2928907]
[1757315193903,1.2175,4299.8,4299.7,6.2928907]
[1757315194107,0.759,4299.8,4299.7,6.2928907]
[1757315196115,0.759,4299.8,4299.7,6.2918907]
[1757315197105,0.2776,4299.8,4299.7,6.2918907]
[1757315198588,0.759,4299.8,4299.7,6.2918907]
[1757315198981,1.551,4299.8,4299.7,6.2918907]
[1757315200314,1.0696,4299.8,4299.7,6.2918907]
[1757315200480,0.818,4299.8,4299.7,6.2918907]
[1757315200680,0.818,4299.8,4299.7,7.0374907]
[1757315202983,0.818,4299.8,4299.7,6.5812907]
[1757315203620,0.818,4299.8,4299.7,6.2918907]
[1757315205020,0.026,4299.8,4299.7,7.5027907]
[1757315205181,0.026,4299.8,4299.7,14.2027907]
[1757315205676,1e-08,4299.8,4299.7,17.2027907]
[1757315205880,1e-08,4299.9,4299.8,5.32568956]
[1757315206109,1e-08,4299.9,4299.8,12.09443891]
[1757315206310,1e-08,4299.9,4299.8,16.26183891]
[1757315206521,1e-08,4299.9,4299.8,17.93438256]
[1757315207145,1e-08,4299.9,4299.8,16.26183891]
[1757315207296,1e-08,4299.9,4299.8,17.93438256]
[1757315208415,0.00100001,4299.9,4299.8,16.26183891]
[1757315208612,1e-08,4300.4,4300.3,2.32541915]
[1757315208817,1e-08,4300.4,4300.3,24.7475685]
[1757315210300,1e-08,4300.4,4300.3,18.90031915]
[1757315211617,1e-08,4300.4,4300.3,15.02331915]
[1757315211923,1e-08,4300.4,4300.3,18.89931915]
[1757315217344,1e-08,4300.4,4300.3,17.97581915]
[1757315217937,1e-08,4300.4,4300.3,18.42301915]
[1757315220036,1e-08,4300.4,4300.3,18.90631915]
[1757315222647,1e-08,4300.4,4300.3,18.42301915]
[1757315223020,1e-08,4300.4,4300.3,18.90631915]
[1757315223204,1e-08,4300.4,4300.3,18.42301915]
[1757315224863,1e-08,4300.4,4300.3,17.97581915]
[1757315225028,1e-08,4300.4,4300.3,14.10181915]
[1757315225215,1e-08,4300.4,4300.3,17.97381915]
[1757315226144,0.76870001,4300.4,4300.3,17.68341915]
[1757315226732,1e-08,4300.4,4300.3,17.68341915]
[1757315228163,0.25080001,4300.4,4300.3,17.68341915]
[1757315228560,0.25080001,4300.4,4300.3,13.81241915]
[1757315228856,0.72120001,4300.4,4300.3,17.68341915]
[1757315230052,1e-08,4300.4,4300.3,17.68341915]
[1757315230261,1e-08,4300.4,4300.3,13.81241915]
[1757315230562,1e-08,4300.4,4300.3,17.98041915]
[1757315230736,1e-08,4300.4,4300.3,18.42761915]
[1757315234247,1e-08,4300.4,4300.3,17.98041915]
[1757315234958,1e-08,4300.4,4300.3,18.42761915]
[1757315235163,1e-08,4300.4,4300.3,17.68341915]
[1757315235630,0.25080001,4300.4,4300.3,17.68341915]
[1757315236148,0.25080001,4300.4,4300.3,13.81241915]
[1757315236350,0.72120001,4300.4,4300.3,17.68241915]